lending/lending_fUSD_20250917
["ID","MTS","AMOUNT","RATE_DAILY","PERIOD"]
[385876672,1758081055469,-163.41,0.00034529,60]
[385876673,1758081055478,-176.3,0.00034529,60]
[385876674,1758081055488,-1500.0,0.00034534,7]
[385876675,1758081055498,-14865.6221605,0.00034535,7]
[385876676,1758081055507,-125981.118236,0.00034535,7]
[385876677,1758081055517,-1000.0,0.00034561,2]
[385876678,1758081055526,-1192.69,0.00034603,2]
[385876679,1758081055536,-411.23,0.00034603,2]
[385876680,1758081055545,-174.95,0.00034603,2]
[385876681,1758081055555,-349.9,0.00034603,2]
[385876682,1758081055564,-599.37,0.00034603,2]
[385876683,1758081055574,-411.23,0.00034603,2]
[385876684,1758081055583,-1085.99,0.00034603,2]
[385876685,1758081055594,-1000.0,0.00034615,2]
[385876686,1758081055603,-256.58,0.00034626,30]
[385876687,1758081055614,-163.41,0.00034629,60]
[385876688,1758081055699,-176.3,0.00034629,60]
[385876689,1758081055709,-410.13,0.00034639,2]
[385876690,1758081055718,-167.46,0.00034639,2]
[385876691,1758081055727,-152.29,0.00034639,2]
[385876692,1758081055737,-155.49,0.00034639,2]
[385876693,1758081055746,-419.37,0.00034639,2]
[385876694,1758081055755,-178.92,0.00034639,2]
[385876695,1758081055765,-308.7,0.00034639,2]
[385876696,1758081055775,-150.58,0.00034639,2]
[385876697,1758081055784,-150.0,0.00034639,2]
[385876698,1758081055793,-2385.02,0.00034639,2]
[385876699,1758081055802,-150.0,0.00034639,2]
[385876700,1758081055811,-822.33,0.00034639,2]
[385876701,1758081055821,-150.0,0.00034639,2]
[385876702,1758081055830,-150.0,0.00034639,2]
[385876703,1758081055840,-150.0,0.00034639,2]
[385876704,1758081055849,-822.33,0.00034639,2]
[385876705,1758081055858,-411.1,0.00034639,2]
[385876706,1758081055867,-150.0,0.00034639,2]
[385876707,1758081055876,-168.0,0.00034684,2]
[385876708,1758081055887,-1381.23321267,0.000347,7]
[385876709,1758081055897,-163.41,0.00034729,60]
[385876710,1758081055906,-176.3,0.00034729,60]
[385876711,1758081055915,-474.04220739,0.00034729,2]
[385876712,1758081055924,-1261.0,0.00034792,2]
[385876713,1758081055934,-2040.0,0.00034792,2]
[385876714,1758081055943,-754.0,0.00034792,2]
[385876715,1758081055952,-3391.0,0.00034792,2]
[385876716,1758081055963,-1581.0,0.00034792,2]
[385876717,1758081055972,-1303.0,0.00034792,2]
[385876718,1758081055981,-602.0,0.00034792,2]
[385876719,1758081055990,-556.67,0.00034792,2]
[385876720,1758081055999,-4023.323,0.00034792,2]
[385876721,1758081056008,-3809.404,0.00034792,2]
[385876722,1758081056018,-3234.688,0.00034792,2]
[385876723,1758081056028,-500.0,0.00034795,7]
[385876724,1758081056037,-500.0,0.00034795,7]
[385876725,1758081056046,-500.0,0.00034795,7]
[385876726,1758081056055,-500.0,0.00034795,7]
[385876727,1758081056064,-500.0,0.00034795,7]
[385876728,1758081056073,-500.0,0.00034795,7]
[385876729,1758081056082,-500.0,0.00034795,7]
[385876730,1758081056091,-500.0,0.00034795,7]
[385876731,1758081056105,-500.0,0.00034795,7]
[385876732,1758081056117,-500.0,0.00034795,7]
[385876733,1758081056127,-500.0,0.00034795,7]
[385876734,1758081056136,-500.0,0.00034795,7]
[385876735,1758081056146,-500.0,0.00034795,7]
[385876736,1758081056155,-500.0,0.00034795,7]
[385876737,1758081056164,-500.0,0.00034795,7]
[385876738,1758081056173,-500.0,0.00034795,7]
[385876739,1758081056182,-500.0,0.00034795,7]
[385876740,1758081056192,-500.0,0.00034795,7]
[385876741,1758081056201,-500.0,0.00034795,7]
[385876742,1758081056210,-500.0,0.00034795,7]
[385876743,1758081056219,-500.0,0.00034795,7]
[385876744,1758081056228,-500.0,0.00034795,7]
[385876745,1758081056237,-500.0,0.00034795,7]
[385876746,1758081056246,-500.0,0.00034795,7]
[385876747,1758081056256,-500.0,0.00034795,7]
[385876748,1758081056265,-515.45968835,0.00034795,7]
[385876749,1758081056274,-3804.5,0.000348,14]
[385876750,1758081056283,-500.0,0.000348,12]
[385876751,1758081056293,-1444739.62066427,0.000348,7]
[385876752,1758081056787,-15582.62962652,0.000348,7]
[385876753,1758081056876,-500.0,0.00022342,2]
[385876754,1758081056889,-69.6427759,0.00024174,14]
[385876755,1758081056903,-90.3572241,0.00024174,14]
[385876756,1758081056912,-151.0,0.00026,7]
[385876757,1758081056921,-1051.8078043,0.000348,7]
[385876758,1758081057962,-271.29037894,0.00019999,2]
[385876759,1758081057972,-500.0,0.00019999,2]
[385876760,1758081057983,-500.0,0.00022616,2]
[385876761,1758081057992,-500.0,0.0002289,2]
[385876762,1758081058001,-500.0,0.00023164,2]
[385876763,1758081058012,-256.62650106,0.00023438,2]
[385876764,1758081060194,-243.37349894,0.00023438,2]
[385876765,1758081060206,-500.0,0.00023712,2]
[385876766,1758081060216,-500.0,0.00023986,2]
[385876767,1758081060225,-160.0,0.00024174,14]
[385876768,1758081060235,-160.0,0.00024174,14]
[385876769,1758081060244,-160.0,0.00024174,14]
[385876770,1758081060255,-160.0,0.00024174,14]
[385876771,1758081060264,-160.0,0.00024174,14]
[385876772,1758081060274,-160.0,0.00024174,14]
[385876773,1758081060284,-160.0,0.00024174,14]
[385876774,1758081060294,-160.0,0.00024174,14]
[385876775,1758081060304,-160.0,0.00024174,14]
[385876776,1758081060314,-160.0,0.00024174,14]
[385876777,1758081060323,-160.0,0.00024174,14]
[385876778,1758081060333,-160.0,0.00024174,14]
[385876779,1758081060343,-160.0,0.00024174,14]
[385876780,1758081060352,-160.0,0.00024174,14]
[385876781,1758081060362,-500.0,0.0002426,2]
[385876782,1758081060372,-500.0,0.00024534,2]
[385876783,1758081060382,-357.119357,0.00027397,7]
[385876784,1758081060392,-357.119357,0.00027397,7]
[385876785,1758081060401,-357.119357,0.00027397,7]
[385876786,1758081060411,-357.119357,0.00027397,7]
[385876787,1758081060420,-357.119357,0.00027397,7]
[385876788,1758081060430,-357.119357,0.00027397,7]
[385876789,1758081060439,-357.119357,0.00027397,7]
[385876790,1758081060449,-151.0,0.00027488,7]
[385876791,1758081060458,-357.119357,0.00027488,7]
[385876792,1758081060467,-357.119357,0.00027488,7]
[385876793,1758081060477,-151.0,0.0003013,7]
[385876794,1758081060487,-357.119357,0.0003013,7]
[385876795,1758081060496,-357.119357,0.0003013,7]
[385876796,1758081060505,-13912.10349741,0.00033524,2]
[385876797,1758081060517,-28287.69928921,0.000348,7]
[385876798,1758081060569,-160.0,0.00024174,14]
[385876799,1758081060579,-267223.67115402,0.000348,7]
[385876800,1758081060590,-3323.05287521,0.000348,7]
[385876801,1758081060643,-357.119357,0.00027397,7]
[385876802,1758081060652,-579.04320784,0.000348,7]
[385876803,1758081060664,-127194.83010944,0.000348,7]
[385876804,1758081060673,-163.41,0.00034829,60]
[385876805,1758081060683,-176.3,0.00034829,60]
[385876806,1758081060693,-5533.95277243,0.0003485,60]
[385876807,1758081060702,-79302.78943055,0.000349,2]
[385876808,1758081060711,-162.31721831,0.000349,7]
[385876809,1758081060721,-500.0,0.000349,12]
[385876810,1758081060730,-237.27786103,0.000349,2]
[385876811,1758081060739,-22262.86328897,0.000349,2]
[385876812,1758081060748,-1425.0,0.00034925,2]
[385876813,1758081060758,-163.41,0.00034929,60]
[385876814,1758081060768,-176.3,0.00034929,60]
[385876815,1758081060777,-1000.0,0.00034947,2]
[385876816,1758081060787,-4000.0,0.00034957,4]
[385876817,1758081060795,-1000.0,0.0003497,2]
[385876818,1758081060805,-1000.0,0.0003497,2]
[385876819,1758081060815,-1479.55510811,0.0003497,2]
[385876820,1758081060824,-1000.0,0.0003497,2]
[385876821,1758081060834,-906.89234578,0.0003497,2]
[385876822,1758081060844,-5638.79919462,0.00035,2]
[385876823,1758081060853,-153.8265947,0.00035,30]
[385876824,1758081060863,-17266.50463726,0.00035,4]
[385876825,1758081061352,-160.0,0.00024174,14]
[385876826,1758081061361,-160.0,0.00024174,14]
[385876827,1758081061370,-160.0,0.00024174,14]
[385876828,1758081061379,-160.0,0.00024174,14]
[385876829,1758081061389,-160.0,0.00024174,14]
[385876830,1758081061398,-357.119357,0.00027397,7]
[385876831,1758081061408,-357.119357,0.00027397,7]
[385876832,1758081061417,-357.119357,0.00027397,7]
[385876833,1758081061426,-357.119357,0.00027488,7]
[385876834,1758081061436,-357.119357,0.0003013,7]
[385876835,1758081061445,-87918.27880516,0.00035,4]
[385876836,1758081062619,-160.0,0.00024174,14]
[385876837,1758081062628,-160.0,0.00024174,14]
[385876838,1758081062638,-160.0,0.00024174,14]
[385876839,1758081062647,-357.119357,0.00027397,7]
[385876840,1758081062656,-357.119357,0.00027488,7]
[385876841,1758081062666,-357.119357,0.0003013,7]
[385876842,1758081062675,-898.0,0.00031792,2]
[385876843,1758081062685,-11558.06834652,0.00035,4]
[385876844,1758081062717,-4270.80162864,0.00035,4]
[385876845,1758081062786,-160.0,0.00024174,14]
[385876846,1758081062795,-663.25643375,0.00035,4]
[385876847,1758081062839,-2822.1076224,0.00035,4]
[385876848,1758081062850,-605.6240004,0.00035,4]
[385876849,1758081062861,-753.61199999,0.00035,4]
[385876850,1758081062872,-1174.24995493,0.00035,4]
[385876851,1758081062885,-1743.0,0.00035,4]
[385876852,1758081583220,157.1,0.00015837,2]
[385876853,1758081586179,500.0,0.00013699,2]
[385876855,1758082236716,-152.14,0.00024173,2]
[385876856,1758082236726,-225.64437479,0.00024173,2]
[385876857,1758082236735,-236.10572468,0.00024737,2]
[385876858,1758082236822,-276.89152986,0.00024737,2]
[385876859,1758082236834,-20.99274546,0.00024737,2]
[385876860,1758082236843,-425.57868127,0.00024892,2]
[385876861,1758082237825,-94.78131873,0.00024892,2]
[385876862,1758082237834,-609.48868127,0.00024899,2]
[385876863,1758082237970,-530.51131873,0.00024899,2]
[385876864,1758082237980,-171.93194647,0.000249,3]
[385876865,1758082237989,-253.64056217,0.000249,2]
[385876866,1758082238004,-703.08820863,0.000249,2]
[385876892,1758082240134,-2330.6780598,0.000249,2]
[385876893,1758082240145,-2582.86128352,0.000249,2]
[385876910,1758082245848,-466.81370507,0.00024899,2]
[385876911,1758082245873,-33.18629493,0.00024899,2]
[385876912,1758082245882,-7390.82719729,0.000249,2]
[385876913,1758082245891,-170.3225,0.00025099,2]
[385876914,1758082245900,-1465.18306127,0.0002674,2]
[385876915,1758082245910,-169.68,0.00026977,2]
[385876916,1758082245919,-8462.58,0.00026977,2]
[385876917,1758082245929,-9999.99,0.00026977,2]
[385876918,1758082245939,-5488.6,0.00026977,2]
[385876919,1758082245948,-499.99,0.00026977,2]
[385876920,1758082245958,-526.0,0.00027137,2]
[385876921,1758082245967,-150.99,0.00027137,2]
[385876922,1758082245976,-1734.03823536,0.000273,2]
[385876923,1758082245986,-2893.43420711,0.00027399,2]
[385876924,1758082245996,-160.0,0.000274,7]
[385876925,1758082246005,-268.62,0.00027628,2]
[385876926,1758082246014,-340.645,0.00027839,7]
[385876927,1758082246023,-1021.09,0.00028,2]
[385876928,1758082246032,-201.60468432,0.00029127,2]
[385876929,1758082246041,-509.75305905,0.00029127,2]
[385876930,1758082246050,-158.04600656,0.00029127,2]
[385876931,1758082246060,-1734.03823537,0.00029128,2]
[385876932,1758082246068,-4642.1719,0.00029128,2]
[385876933,1758082246078,-151.0,0.0002921,2]
[385876934,1758082246086,-151.0,0.0002921,2]
[385876935,1758082246095,-151.0,0.0002921,2]
[385876936,1758082246105,-151.0,0.0002921,2]
[385876937,1758082246114,-151.0,0.0002921,2]
[385876938,1758082246123,-500.0,0.00029273,5]
[385876939,1758082246132,-500.0,0.00029273,5]
[385876940,1758082246142,-167.204935,0.00029273,5]
[385876941,1758082246151,-516.07479255,0.00029495,2]
[385876942,1758082246160,-160.0,0.00029495,2]
[385876943,1758082246170,-160.0,0.00029495,2]
[385876944,1758082246179,-160.0,0.00029495,2]
[385876945,1758082246188,-213.18994792,0.00029495,2]
[385876946,1758082246197,-868.48,0.00029643,2]
[385876947,1758082246207,-492.0,0.000298,2]
[385876948,1758082246216,-1000.0,0.00029821,5]
[385876949,1758082246225,-500.0,0.00029821,5]
[385876950,1758082246234,-2000.0,0.000299,2]
[385876951,1758082246243,-1000.0,0.000301,2]
[385876952,1758082246254,-500.0,0.0003013,14]
[385876953,1758082246264,-151.42784948,0.0003013,14]
[385876954,1758082246273,-500.0,0.0003013,14]
[385876955,1758082246282,-150.0,0.0003013,14]
[385876956,1758082246291,-500.0,0.0003013,14]
[385876957,1758082246300,-1000.0,0.00030203,30]
[385876958,1758082246310,-9297.31,0.00030219,2]
[385876959,1758082246319,-4136.76773581,0.00030274,2]
[385876960,1758082246402,-863.23226419,0.00030274,2]
[385876961,1758082246412,-666.0,0.0003028,3]
[385876962,1758082246421,-209.3,0.00030343,2]
[385876963,1758082246431,-3815.48,0.00030355,2]
[385876964,1758082246440,-936.95,0.00030355,2]
[385876965,1758082246450,-200.0,0.00030388,2]
[385876966,1758082246459,-214.17167969,0.00030388,2]
[385876967,1758082246469,-500.0,0.00030388,2]
[385876968,1758082246478,-500.0,0.00030388,2]
[385876969,1758082246487,-913.171,0.00030394,26]
[385876970,1758082246496,-500.0,0.00030404,14]
[385876971,1758082246506,-500.0,0.00030404,14]
[385876972,1758082246515,-150.0,0.00030404,14]
[385876973,1758082246525,-500.0,0.00030404,14]
[385876974,1758082246534,-165.8,0.00030471,2]
[385876975,1758082246543,-510.9675,0.00030579,12]
[385876976,1758082246553,-756.36,0.000306,2]
[385876977,1758082246562,-5000.0,0.00030614,2]
[385876978,1758082246573,-500.0,0.00030662,2]
[385876979,1758082246582,-500.0,0.00030662,2]
[385876980,1758082246591,-500.0,0.00030678,14]
[385876981,1758082246600,-563.19673115,0.00030678,14]
[385876982,1758082246610,-207.62382453,0.00030678,14]
[385876983,1758082246619,-500.0,0.00030678,14]
[385876984,1758082246628,-250.0,0.00030851,2]
[385876985,1758082246637,-500.0,0.00030936,2]
[385876986,1758082246646,-500.0,0.00030936,2]
[385876987,1758082246656,-500.0,0.00030952,14]
[385876988,1758082246665,-500.0,0.00030952,14]
[385876989,1758082246674,-483.0,0.0003098,2]
[385876990,1758082246683,-500.0,0.0003121,2]
[385876991,1758082246694,-500.0,0.0003121,2]
[385876992,1758082246703,-500.0,0.00031226,14]
[385876993,1758082246712,-500.0,0.00031226,14]
[385876994,1758082246721,-166.65,0.00031304,30]
[385876995,1758082246730,-500.0,0.00031464,5]
[385876996,1758082246740,-500.0,0.00031484,2]
[385876997,1758082246749,-265.01703366,0.00031484,2]
[385876998,1758082246758,-150.0,0.0003149,7]
[385876999,1758082246768,-500.0,0.000315,14]
[385877000,1758082246777,-500.0,0.000315,14]
[385877001,1758082246786,-1740.69,0.00031517,2]
[385877002,1758082246795,-1000.0,0.00031642,2]
[385877003,1758082246804,-157.1,0.00031674,2]
[385877004,1758082246813,-500.0,0.00031674,2]
[385877005,1758082246823,-3287.0,0.00031674,2]
[385877006,1758082246832,-250.0,0.00031711,2]
[385877007,1758082246841,-213.89,0.00031725,2]
[385877008,1758082246851,-500.0,0.00031738,5]
[385877009,1758082246860,-500.0,0.00031758,2]
[385877010,1758082246869,-398.88258796,0.00031774,14]
[385877011,1758082246878,-500.0,0.00031774,14]
[385877012,1758082246888,-152.0,0.00031776,3]
[385877013,1758082246897,-151.0,0.00031792,2]
[385877014,1758082246906,-151.94948064,0.00031792,2]
[385877015,1758082246916,-160.0,0.000318,7]
[385877016,1758082246925,-160.0,0.000318,7]
[385877017,1758082246934,-209.3,0.0003186,2]
[385877018,1758082246944,-150.0,0.00031918,2]
[385877019,1758082246953,-2387.38,0.00031942,2]
[385877020,1758082246962,-3287.0,0.00031948,2]
[385877021,1758082246971,-714.4,0.00031991,2]
[385877022,1758082246980,-500.0,0.00032012,5]
[385877023,1758082246990,-500.0,0.00032032,2]
[385877024,1758082247284,-500.0,0.00032048,14]
[385877025,1758082247296,-200.0,0.00032058,2]
[385877026,1758082247306,-157.8,0.00032071,120]
[385877027,1758082247315,-473.0,0.0003217,2]
[385877028,1758082247323,-150.245,0.00032182,2]
[385877029,1758082247332,-3287.0,0.00032222,2]
[385877030,1758082247341,-500.0,0.00032286,5]
[385877031,1758082247350,-500.0,0.00032306,2]
[385877032,1758082247359,-500.0,0.00032322,14]
[385877033,1758082247369,-1000.0,0.00032451,2]
[385877034,1758082247378,-303.09,0.00032459,2]
[385877035,1758082247387,-3287.0,0.00032496,2]
[385877036,1758082247396,-1000.0,0.00032501,2]
[385877037,1758082247405,-1093.23774784,0.00032558,2]
[385877038,1758082247434,-420.53906153,0.00032558,2]
[385877039,1758082247447,-1642.87025,0.00032558,2]
[385877040,1758082247458,-654.97185558,0.00032558,2]
[385877041,1758082247589,-890.63108505,0.00032558,2]
[385877042,1758082247599,-500.0,0.0003256,5]
[385877043,1758082247608,-500.0,0.0003258,2]
[385877044,1758082247617,-500.0,0.00032596,14]
[385877045,1758082247626,-126.73541495,0.00032624,28]
[385877046,1758082262025,296.47418892,0.00027389,120]
[385877047,1758082485143,156.86,0.00014819,2]
[385877048,1758082485255,156.86,0.00018523,2]
[385877051,1758082701564,890.03128885,0.0003,120]
[385877054,1758083110893,4881.14833557,0.000154,2]
[385877055,1758083120702,7506.17862614,9e-05,2]
[385877071,1758083432181,-1200.0,0.00019989,2]
[385877072,1758083432191,-203.00575729,0.00019989,2]
[385877073,1758083432202,-96.99424271,0.00019989,2]
[385877074,1758083432214,-2884.36033307,0.0001999,2]
[385877075,1758083432227,-482.13395217,0.0001999,2]
[385877076,1758083432255,-7071.70436997,0.0001999,2]
[385877077,1758083432265,-3630.94711571,0.00019999,2]
[385877078,1758083432274,-165.8489597,0.00019999,2]
[385877079,1758083432283,-191.4899718,0.00019999,2]
[385877080,1758083432292,-500.0,0.00019999,2]
[385877081,1758083432302,-185.65609319,0.00019999,2]
[385877082,1758083432311,-53258.53119347,0.0002,2]
[385877083,1758083432320,-420.0,0.00021766,2]
[385877084,1758083432329,-1680.0,0.00021871,2]
[385877085,1758083432338,-156.86,0.00022228,2]
[385877086,1758083432347,-587.0,0.00023701,2]
[385877087,1758083432356,-2351.0,0.00023929,2]
[385877088,1758083432365,-17083.35222446,0.00024,2]
[385877089,1758083432375,-9999.99,0.00024451,2]
[385877090,1758083432383,-3520.97,0.00024451,2]
[385877091,1758083432392,-150.99,0.00024899,2]
[385877092,1758083432402,-9999.99,0.00024899,2]
[385877093,1758083432411,-9999.99,0.00024899,2]
[385877095,1758083432420,-13230.4957665,0.000249,2]
[385877097,1758083432429,-504.39157314,0.00025075,2]
[385877099,1758083432438,-200.0,0.000251,7]
[385877100,1758083432447,-808.01409516,0.000251,2]
[385877102,1758083432455,-250.0,0.00025255,2]
[385877103,1758083432465,-200.0,0.0002551,7]
[385877107,1758083432474,-224.47,0.00025775,2]
[385877110,1758083432483,-224.47,0.00025775,2]
[385877113,1758083432492,-224.47,0.00025775,2]
[385877115,1758083432501,-224.47,0.00025775,2]
[385877117,1758083432509,-224.47,0.00025775,2]
[385877119,1758083432518,-152.2,0.00025775,2]
[385877121,1758083432527,-3992.72784589,0.00025785,2]
[385877123,1758083432539,-11552.77857787,0.00025785,2]
[385877149,1758083438082,-215.68467894,0.00019989,2]
[385877150,1758083438091,-2371.19696596,0.00025785,2]
[385877151,1758083438100,-1110594.89765145,0.00025785,2]
[385877152,1758083438109,-2695.94,0.00025786,2]
[385877153,1758083438118,-6464.65,0.00025786,2]
[385877154,1758083438127,-29999.99,0.00025786,2]
[385877155,1758083438136,-823.0,0.00025808,2]
[385877156,1758083438145,-156.86,0.00025933,2]
[385877157,1758083438154,-200.0,0.000261,7]
[385877158,1758083438164,-3292.0,0.00026182,2]
[385877159,1758083438178,-348.35920248,0.00026412,2]
[385877160,1758083438187,-150.0,0.00026865,2]
[385877161,1758083438196,-18119.2,0.0002689,2]
[385877162,1758083438205,-150.0,0.00026908,7]
[385877163,1758083438216,-526.4788,0.00027137,2]
[385877164,1758083438227,-555.0,0.00027137,2]
[385877165,1758083438237,-545.26,0.0002722,2]
[385877166,1758083438248,-300.0,0.00027397,2]
[385877167,1758083438258,-156.38462727,0.00027397,5]
[385877168,1758083438267,-1219.54,0.00027464,2]
[385877169,1758083438276,-538.96959634,0.000275,2]
[385877170,1758083438287,-906.66,0.00027737,2]
[385877171,1758083438297,-8244.24057665,0.00028,2]
[385877172,1758083438306,-1152.0,0.00028102,2]
[385877173,1758083438315,-4609.0,0.00028646,2]
[385877174,1758083438325,-213.89,0.00028692,2]
[385877175,1758083438335,-12472.94450689,0.0002876,2]
[385877176,1758083438344,-473.62,0.00028922,2]
[385877178,1758083438353,-4323.17,0.00028928,2]
[385877180,1758083438362,-164.88,0.0002932,2]
[385877182,1758083438371,-5000.0,0.00029385,2]
[385877184,1758083438380,-1268.0,0.000295,6]
[385877185,1758083438389,-1000.0,0.000295,6]
[385877186,1758083438398,-1000.0,0.000295,6]
[385877187,1758083438407,-1051.0,0.000295,5]
[385877188,1758083438416,-1000.0,0.000295,4]
[385877189,1758083438425,-1000.0,0.000295,3]
[385877190,1758083438435,-1000.0,0.000295,3]
[385877191,1758083438444,-1000.0,0.000295,4]
[385877192,1758083438737,-1008.0,0.000295,5]
[385877193,1758083438749,-1000.0,0.000295,4]
[385877194,1758083438760,-1000.0,0.000295,3]
[385877195,1758083438769,-1000.0,0.000295,3]
[385877196,1758083438778,-256.58,0.00029508,30]
[385877197,1758083438788,-7315.9791166,0.00029516,2]
[385877198,1758083438798,-4035.1109,0.00029537,2]
[385877199,1758083438808,-1947.4145,0.00029537,2]
[385877200,1758083438817,-232.2771,0.00029537,2]
[385877201,1758083438827,-514.83774384,0.00029573,5]
[385877202,1758083438836,-503.01692135,0.00029573,5]
[385877203,1758083438846,-200.0,0.00029573,5]
[385877204,1758083438856,-500.0,0.00029573,5]
[385877205,1758083438865,-500.0,0.00029573,5]
[385877206,1758083438874,-500.0,0.00029573,5]
[385877207,1758083438891,-519.52184494,0.00029573,5]
[385877208,1758083438900,-150.0,0.00029586,2]
[385877209,1758083438910,-266.20906055,0.00029588,2]
[385877210,1758083438919,-339.28605756,0.0002959,2]
[385877211,1758083438928,-412.36305457,0.00029593,2]
[385877212,1758083438938,-485.44005158,0.00029595,2]
[385877213,1758083438947,-558.5170486,0.00029597,2]
[385877214,1758083438956,-631.59404561,0.00029599,2]
[385877215,1758083438965,-26644.68611,0.000296,2]
[385877216,1758083438974,-704.67104262,0.00029601,2]
[385877217,1758083438984,-777.74803964,0.00029603,2]
[385877218,1758083438993,-850.82503664,0.00029606,2]
[385877219,1758083439002,-443291.0035,0.00029615,3]
[385877220,1758083439011,-341475.561316,0.00029615,3]
[385877221,1758083439021,-160.0,0.00029615,3]
[385877222,1758083439030,-13659.0224527,0.00029616,3]
[385877223,1758083439039,-40977.0673579,0.00029617,3]
[385877224,1758083439049,-151.0,0.00029617,7]
[385877225,1758083439058,-151.0,0.00029617,7]
[385877226,1758083439067,-151.0,0.00029617,7]
[385877227,1758083439077,-151.0,0.00029617,7]
[385877228,1758083439086,-151.0,0.00029617,7]
[385877229,1758083439095,-151.0,0.00029617,7]
[385877230,1758083439105,-151.0,0.00029617,7]
[385877231,1758083439114,-151.0,0.00029617,7]
[385877232,1758083439123,-151.0,0.00029617,7]
[385877233,1758083439133,-151.0,0.00029617,7]
[385877234,1758083439142,-151.0,0.00029617,7]
[385877235,1758083439151,-151.0,0.00029617,7]
[385877236,1758083439160,-151.0,0.00029617,7]
[385877237,1758083439174,-169.913131,0.00029617,7]
[385877238,1758083439183,-154.420028,0.00029617,7]
[385877239,1758083439191,-151.0,0.00029617,7]
[385877240,1758083439201,-225.387877,0.00029617,7]
[385877241,1758083439210,-151.0,0.00029617,7]
[385877242,1758083439219,-225.387877,0.00029617,7]
[385877243,1758083439228,-225.387877,0.00029617,7]
[385877244,1758083439237,-151.0,0.00029617,7]
[385877245,1758083439246,-225.387877,0.00029617,7]
[385877246,1758083439255,-156.697302,0.00029617,7]
[385877247,1758083439264,-151.0,0.00029617,7]
[385877248,1758083439274,-516.07479255,0.00029627,3]
[385877249,1758083439283,-213.18994792,0.00029627,3]
[385877250,1758083439292,-13659.0224527,0.00029627,3]
[385877251,1758083439301,-2000.0,0.00029637,2]
[385877252,1758083439310,-2000.0,0.00029637,2]
[385877253,1758083439319,-2000.0,0.00029637,2]
[385877254,1758083439328,-2000.0,0.00029637,2]
[385877255,1758083439337,-2000.0,0.00029637,2]
[385877256,1758083439346,-2000.0,0.00029637,2]
[385877257,1758083439355,-2000.0,0.00029637,2]
[385877258,1758083439365,-2000.0,0.00029637,2]
[385877259,1758083439374,-2000.0,0.00029637,2]
[385877260,1758083439383,-2000.0,0.00029637,2]
[385877261,1758083439392,-2023.0,0.00029637,2]
[385877262,1758083439401,-156.86,0.00029637,2]
[385877263,1758083439410,-666.0,0.00029637,3]
[385877264,1758083439419,-718.58,0.00029637,2]
[385877265,1758083439427,-200.0,0.00029637,2]
[385877266,1758083439437,-160.52801701,0.00029673,5]
[385877267,1758083439447,-500.0,0.00029673,5]
[385877268,1758083439456,-501.09720928,0.00029673,5]
[385877269,1758083439465,-517.77786663,0.00029673,5]
[385877270,1758083439474,-502.29989803,0.00029673,5]
[385877271,1758083439483,-300.0,0.000297,10]
[385877272,1758083439492,-213.18994792,0.000297,2]
[385877273,1758083439502,-160.0,0.000297,2]
[385877274,1758083439511,-516.07479255,0.000297,2]
[385877275,1758083439520,-160.0,0.000297,2]
[385877276,1758083439529,-160.0,0.000297,2]
[385877277,1758083439539,-700.0,0.000298,10]